Cogmind - Beta 13 @@@ ROGUE MODE // 2024.05.23 @ 21:59:07 Player: Decinym Result: Self-destructed Performance ------------- Evolutions (4) 2000 Regions Visited (14) 2800 Robots Destroyed (144) 720 Value Destroyed (5058) 5058 Prototype IDs (36) 720 Alien Tech Used (0) 0 Bonus (1936) 1936 TOTAL SCORE: 13234 Bonus ------- High Alert Combat Kills 134 Follower Combat Kills 759 Entered Garrisons 200 Aligned with FarCom 300 Met Imprinter 300 Was Imprinted 300 Acquired ECA 300 Friendly Fire -357 Cogmind --------- Core Integrity 501/850 Matter 212/300 Energy 140/140 System Corruption 24% Temperature Cool (0) Movement Rolling (145) Ox3 Location -6/Factory Parts ------- > --- POWER (2) -------- Light Deuterium Engine > --- PROPULSION (5) --- Flexi-carbon Leg Myomer Leg Advanced Myomer Leg Armored Huge Wheel > --- UTILITY (6) ------ Improved Cooling System Huge Storage Unit Improved Signal Interpreter Advanced Targeting Computer Hardened Heavy Armor Plating > --- WEAPON (2) ------- (None) > --- INVENTORY (25) --- Reinforced Deuterium Engine Armored Treads Combat Antigrav System High-capacity Battery (250) Medium Matter Pod (100) Improved Signal Interpreter Active Sensor Suite Encrypted Comm Array Tactical Coordination Suite Improved Armor Integrity Analyzer Improved Light Armor Plating Improved Powered Armor Improved Force Field Z-Drone Bay (2/2) Hacking Drone Bay (1/1) AWS/EX-DEC Improved Grenade Launcher Precision Grenade Launcher CR-A16's Pointy Stick Peak State ------------ > --- POWER ------------ Angular Momentum Engine Angular Momentum Engine > --- PROPULSION ------- Myomer Leg Myomer Leg Myomer Leg Myomer Leg Advanced Myomer Leg > --- UTILITY ---------- Improved Cooling System Huge Storage Unit Improved Signal Interpreter Advanced Targeting Computer Makeshift Light Armor Plating Z-Drone Bay > --- WEAPON ----------- Gatling Laser Phasing Sabre > --- INVENTORY -------- Light Deuterium Engine Armored Treads Combat Antigrav System High-capacity Battery Medium Matter Pod Improved Signal Interpreter Encrypted Comm Array Tactical Coordination Suite Improved Armor Integrity Analyzer Cloaking Device Improved Light Armor Plating Improved Powered Armor Improved Force Field Hacking Drone Bay Heavy Riot Gun High-powered Shock Rifle High-powered Shock Rifle AWS/EX-DEC Gatling Laser Proton Missile Launcher Improved Grenade Launcher Precision Grenade Launcher CR-A16's Pointy Stick [Rating: 89] Favorites ----------- Power Light Ion Engine Engine Light Ion Engine Power Core Light Nuclear Core Reactor Cold Fusion Reactor Propulsion Light Treads Treads Light Treads Leg Myomer Leg Wheel Compact Wheel Utility Huge Storage Unit Device Improved Heat Sink Storage Huge Storage Unit Processor Advanced Targeting Computer Protection Makeshift Light Armor Plating Weapon Autogun Energy Gun High-powered Field Laser Ballistic Gun Autogun Launcher Mini Grenade Launcher Slashing Weapon Phasing Sabre Build | -11 -10 -10 -9 -9 -9 -8 -8 -8 -7 -7 -7 -7 -6 -6 ------- Run | Yrd Mat Min Mat Min Exi Min Mat Gar Fac Low Low Zio Pro Fac Slots Evolved 8 | . . . 2 . . . 2 . 2 . . . . 2 Power 1 | . . . . . . . . . 1 . . . . . Propulsion 3 | . . . 1 . . . 1 . . . . . . 1 Utility 4 | . . . 1 . . . 1 . 1 . . . . 1 Weapon . | . . . . . . . . . . . . . . . Parts Attached 153 | . 7 . 9 1 20 . 10 19 16 14 5 5 9 38 Power 17 | . 1 . 1 . 1 . 1 . 2 2 2 . 3 4 Engine 11 | . 1 . 1 . 1 . . . 1 1 1 . 2 3 Core 5 | . . . . . . . . . 1 1 1 . 1 1 Reactor 1 | . . . . . . . 1 . . . . . . . Propulsion 52 | . 3 . 3 . 7 . 5 6 2 4 1 4 1 16 Treads 41 | . 2 . 3 . 7 . 5 6 2 4 1 4 1 6 Leg 8 | . 1 . . . . . . . . . . . . 7 Wheel 3 | . . . . . . . . . . . . . . 3 Hover . | . . . . . . . . . . . . . . . Flight . | . . . . . . . . . . . . . . . Utility 36 | . 3 . 1 1 4 . 2 5 3 6 . 1 4 6 Device 17 | . . . . . 2 . 1 2 2 2 . . 4 4 Storage 3 | . 2 . . . 1 . . . . . . . . . Processor 7 | . 1 . . 1 . . 1 1 1 1 . . . 1 Hackware . | . . . . . . . . . . . . . . . Protection 9 | . . . 1 . 1 . . 2 . 3 . 1 . 1 Artifact . | . . . . . . . . . . . . . . . Weapon 48 | . . . 4 . 8 . 2 8 9 2 2 . 1 12 Energy Gun 15 | . . . . . . . . 1 5 . 2 . . 7 Energy Cannon . | . . . . . . . . . . . . . . . Ballistic Gun 20 | . . . 4 . 6 . 1 5 1 1 . . 1 1 Ballistic Cannon . | . . . . . . . . . . . . . . . Launcher 11 | . . . . . 2 . 1 2 3 1 . . . 2 Special Weapon . | . . . . . . . . . . . . . . . Impact Weapon . | . . . . . . . . . . . . . . . Slashing Weapon 2 | . . . . . . . . . . . . . . 2 Piercing Weapon . | . . . . . . . . . . . . . . . Special Melee Weapon . | . . . . . . . . . . . . . . . Unidentified Prototypes 13 | . . . 2 . 1 . 1 . 4 1 . . 2 2 Corrupted Parts 3 | . . . . . . . . . . . . . 1 2 System Corruption 11 | . . . . . . . . . . . . . 2 9 Parts Lost 51 | . 1 . . . 10 . . 7 3 8 3 . 1 18 Power 10 | . 1 . . . 1 . . . 1 3 1 . . 3 Propulsion 21 | . . . . . 5 . . 5 1 3 1 . . 6 Utility 9 | . . . . . 2 . . 1 1 2 . . . 3 Weapon 11 | . . . . . 2 . . 1 . . 1 . 1 6 Highest Loss Streak 10 | . 1 . . . 10 . . 3 2 5 3 . 1 5 To Critical Strikes 7 | . . . . . 7 . . . . . . . . . Average Slot Usage (%) 98 | . 96 100 95 100 99 100 100 97 98 91 98 100 99 96 Engine 10 | . 13 14 11 11 11 11 7 . 7 3 11 15 14 10 Reactor 1 | . . . . . . . 1 9 3 . . . . . Treads 30 | . 17 28 32 33 32 33 36 34 29 29 30 30 30 24 Leg 1 | . 10 . . . . . . . . . . . . 5 Device 7 | . . . . . 5 11 18 9 14 11 7 7 7 11 Storage 8 | . 14 14 11 11 11 11 9 9 7 7 7 7 7 6 Processor 12 | . 10 14 11 11 11 11 9 11 15 15 15 15 15 13 Protection 5 | . . . 7 11 5 . . 4 . 2 7 7 7 5 Energy Gun 6 | . 14 14 1 . . . . . 6 11 11 15 7 7 Ballistic Gun 10 | . 14 14 20 22 20 22 18 16 8 2 2 . 6 3 Naked Turns . | . . . . . . . . . . . . . . . Heaviest Build 125 | 10 85 85 97 97 97 95 100 111 107 105 106 106 115 125 Greatest Support 132 | 20 40 40 60 60 60 60 80 80 88 88 86 99 104 132 Greatest Overweight (x) 7 | . 2 2 1 1 1 1 1 1 1 1 1 1 1 7 Average Overweight (x) 1 | . . 2 1 1 1 1 1 1 1 1 1 1 1 1 Largest Inventory Capacity 25 | . 25 25 25 25 25 25 25 25 25 25 25 25 25 25 Average Capacity 24 | . 18 25 25 25 25 25 25 25 25 25 25 25 25 25 Most Carried 25 | . 18 19 25 25 25 25 25 25 25 25 25 25 25 25 Average Carried 22 | . 11 18 23 24 21 25 24 24 22 23 23 24 24 24 Final Capacity 25 | 8 25 25 25 25 25 25 25 25 25 25 25 25 25 25 Final Carried 25 | 6 18 19 25 25 25 25 25 23 25 25 24 25 25 22 Class Distribution -------------------- 67% | Scavenger-Mutant 32% | Mutant Dominant Class ---------------- Mutant | -10/Materials Mutant | -10/Mines Scavenger-Mutant | -9/Materials Mutant | -9/Mines Mutant | -9/Exiles Mutant | -8/Mines Scavenger-Mutant | -8/Materials Scavenger-Mutant | -8/Garrison Scavenger-Mutant | -7/Factory Scavenger-Mutant | -7/Lower Caves Scavenger-Mutant | -7/Lower Caves Scavenger-Mutant | -7/Zion Scavenger-Mutant | -6/Proximity Caves Scavenger-Mutant | -6/Factory Resources | -11 -10 -10 -9 -9 -9 -8 -8 -8 -7 -7 -7 -7 -6 -6 ----------- Run | Yrd Mat Min Mat Min Exi Min Mat Gar Fac Low Low Zio Pro Fac Matter Collected 4151 | 197 128 3 351 90 1008 . 307 910 251 170 97 50 90 499 Remotely . | . . . . . . . . . . . . . . . Salvage Created 6336 | . 338 . 649 44 451 . 515 1154 571 648 270 . 120 1576 Parts 342 | . 27 . 44 3 51 . 33 43 32 23 10 . 6 70 Haulers Intercepted 11 | . 1 . 3 . . . 1 . 2 1 . . . 3 Recyclers Shooed 9 | . . . 1 . . . 2 . 2 . . . . 4 Parts Field Recycled . | . . . . . . . . . . . . . . . Retrieved Matter . | . . . . . . . . . . . . . . . Parts Self-Destructed 54 | . . . . . . . . . . 32 12 4 6 . Prevented 3 | . . . . . . . . . . . . . 3 . Kills | -11 -10 -10 -9 -9 -9 -8 -8 -8 -7 -7 -7 -7 -6 -6 ------- Run | Yrd Mat Min Mat Min Exi Min Mat Gar Fac Low Low Zio Pro Fac Combat Hostiles Destroyed 98 | . 8 . 7 3 4 . 9 21 9 13 6 . 1 17 Guns 72 | . 8 . 7 3 2 . 7 17 3 12 5 . 1 7 AOE 22 | . . . . . 2 . 2 4 6 1 . . . 7 Classes Destroyed 21 | . 6 . 4 . 3 . . 2 . 1 . . 1 4 Worker 13 | . 2 . 1 . . . . . 6 . . . . 4 Builder 3 | . 1 . . . . . 2 . . . . . . . Tunneler 1 | . . . . . . . . . . . . . . 1 Hauler 11 | . 1 . 3 . . . 1 . 2 1 . . . 3 Recycler 7 | . . . 2 . . . 1 . 1 . . . . 3 Mechanic 1 | . . . . . . . . . . . . . . 1 Operator 1 | . . . 1 . . . . . . . . . . . Turret 1 | . . . . . 1 . . . . . . . . . Watcher 5 | . 2 . . . . . 1 . . . . . . 2 Swarmer 23 | . 6 . . 3 . . 4 . 3 4 2 . . 1 Grunt 41 | . 2 . 3 . 1 . 2 18 5 4 2 . 1 3 Brawler 4 | . . . 1 . . . 1 . . 2 . . . . Duelist 4 | . . . . . . . . 1 . 1 1 . . 1 Sentry 8 | . . . 3 . . . 2 . 1 1 1 . . . Specialist 7 | . . . . . . . . 2 . . . . . 5 Hunter 5 | . . . . . . . . . . 1 . . . 4 Programmer 2 | . . . . . . . . . . . . . . 2 Heavy 1 | . . . . . . . . . . . . . . 1 Zionite 2 | . . . . . 2 . . . . . . . . . Assembled 3 | . . . . . 3 . . . . . . . . . Mutant 1 | . . . . . . . . . . . . . 1 . Best Kill Streak 10 | . 6 . 3 3 3 . 6 3 7 7 3 . 1 10 Combat Bots Only 8 | . 3 . 2 3 3 . 4 3 3 7 3 . 1 8 Max Kills in Single Turn 7 | . 2 . 1 1 3 . 2 1 7 2 1 . 1 4 Gunslinging . | . . . . . . . . . . . . . . . Exploded 3 | . . . . . 2 . 1 1 3 1 . . . 3 Melee . | . . . . . . . . . . . . . . . Uniques/NPCs Destroyed 4 | . . . . . 4 . . . . . . . . . 8R-AWN (-9/Exiles) EX-HEX (-9/Exiles) EX-DEC (-9/Exiles) EX-BIN (-9/Exiles) Combat | -11 -10 -10 -9 -9 -9 -8 -8 -8 -7 -7 -7 -7 -6 -6 -------- Run | Yrd Mat Min Mat Min Exi Min Mat Gar Fac Low Low Zio Pro Fac Hostile Shots Fired 864 | . 33 . 36 24 93 . 25 138 69 80 105 . 12 249 Missed 216 | . 9 . 8 5 11 . 6 28 24 21 34 . . 70 Damage Taken 10357 | . 270 . 367 159 1418 . 225 1905 648 1055 891 . 240 3179 Core 1270 | . 57 . 48 50 142 . 33 246 59 207 79 . . 349 Absorbed by Shields 289 | . . . . . . . . 53 . . . . . 236 Redirected to Shielding 110 | . . . . . . . . . . 110 . . . . Regen/Repaired (Parts) 254 | . . . 158 . . . . . 96 . . . . . Core Remaining (%) 63 | 100 . 77 . . . 40 . 49 . . . . 50 . Volleys Fired 455 | . 33 3 37 11 101 . 29 96 20 28 22 1 8 66 Largest 2 | . 2 2 2 2 2 . 2 2 2 2 2 1 2 2 Hottest 160 | . 60 60 60 46 46 . 46 55 140 140 150 70 150 160 Shots Fired 858 | . 67 5 74 22 191 . 56 177 38 53 43 1 9 122 Gun 824 | . 67 5 74 22 181 . 54 167 36 50 43 1 9 115 Cannon . | . . . . . . . . . . . . . . . Launcher 34 | . . . . . 10 . 2 10 2 3 . . . 7 Special . | . . . . . . . . . . . . . . . Kinetic 619 | . 33 3 69 22 181 . 54 162 22 7 19 . . 47 Thermal 187 | . 34 2 5 . . . . . 14 43 24 1 9 55 Explosive 26 | . . . . . 10 . 2 7 1 3 . . . 3 Electromagnetic 26 | . . . . . . . . 8 1 . . . . 17 Robot Hit Streak 29 | . 7 3 9 4 29 . 7 25 7 25 13 . 8 25 Robot Miss Streak 4 | . 4 1 3 2 2 . 2 2 2 3 2 . 2 4 Penetration Max . | . . . . . . . . . . . . . . . Secondary Targets 10 | . . . . . . . . 4 1 1 1 . . 3 Max Gunslinging Chain 1 | . . . . . . . . 1 1 1 1 . . 1 Shots Hit Robots 637 | . 39 4 51 13 147 . 39 139 24 35 36 . 8 102 Core Hits 330 | . 22 1 21 3 39 . 20 71 22 27 11 . 9 84 Critical Kills 1 | . . . . . . . 1 . . . . . . . Critical Parts Destroyed 2 | . 1 . . . . . . 1 . . . . . . Critical Strikes 10 | . 1 . . . . . 1 1 3 2 2 . . . Burn 7 | . . . . . . . . . 3 2 2 . . . Destroy 3 | . 1 . . . . . 1 1 . . . . . . Melee Attacks 5 | . . . . . . . . . . . . . . 5 Impact . | . . . . . . . . . . . . . . . Slashing 5 | . . . . . . . . . . . . . . 5 Piercing . | . . . . . . . . . . . . . . . Sneak Attacks . | . . . . . . . . . . . . . . . Combat Hostiles . | . . . . . . . . . . . . . . . Follow-up Attacks . | . . . . . . . . . . . . . . . Damage Inflicted 15622 | . 431 40 782 250 2738 . 867 2953 1519 1285 746 . 202 3809 Guns 10750 | . 386 40 782 250 2180 . 647 1949 463 825 746 . 202 2280 Cannons . | . . . . . . . . . . . . . . . Explosions 4827 | . . . . . 558 . 220 1004 1056 460 . . . 1529 Melee . | . . . . . . . . . . . . . . . Ramming 45 | . 45 . . . . . . . . . . . . . Kinetic 7241 | . 147 28 747 250 2180 . 647 1949 250 55 250 . . 738 Thermal 4201 | . 239 12 35 . . . . . 993 770 496 . 202 1454 Explosive 3267 | . . . . . 558 . 220 860 131 460 . . . 1038 Electromagnetic 868 | . . . . . . . . 144 145 . . . . 579 Impact . | . . . . . . . . . . . . . . . Slashing . | . . . . . . . . . . . . . . . Piercing . | . . . . . . . . . . . . . . . Highest Corruption 24 | . 3 3 . . . . . . . . . . 2 24 Average Corruption 2 | . 1 3 . . . . . . . . . . 2 2 Corruption Purged . | . . . . . . . . . . . . . . . Corruption Blocked . | . . . . . . . . . . . . . . . Effects 41 | . 12 8 . . . . . . . . . . 13 8 Message Errors 13 | . 3 5 . . . . . . . . . . 4 1 Matter Fused 11 | . 4 . . . . . . . . . . . 4 3 Heat Flow Errors 6 | . 1 1 . . . . . . . . . . 1 3 Energy Discharges 5 | . 2 . . . . . . . . . . . 2 1 Parts Fused 1 | . . 1 . . . . . . . . . . . . Data Loss (minor) 3 | . 1 1 . . . . . . . . . . 1 . Data Loss (major) 1 | . . . . . . . . . . . . . 1 . Misfires 1 | . 1 . . . . . . . . . . . . . Overload Shots . | . . . . . . . . . . . . . . . Overflow Damage 191 | . . . . . 1 . . . 133 26 . . . 31 Projectiles . | . . . . . . . . . . . . . . . Explosions 191 | . . . . . 1 . . . 133 26 . . . 31 Melee . | . . . . . . . . . . . . . . . Knockbacks . | . . . . . . . . . . . . . . . Impact . | . . . . . . . . . . . . . . . Kinetic . | . . . . . . . . . . . . . . . Secondary . | . . . . . . . . . . . . . . . Self-Inflicted Damage 225 | . . . . . . . . 69 . 6 . . . 150 Shots 8 | . . . . . . . . 3 . 1 . . . 4 Rammed 5 | . 5 . . . . . . . . . . . . . Targets Rammed 5 | . 5 . . . . . . . . . . . . . Kicked . | . . . . . . . . . . . . . . . Crushed . | . . . . . . . . . . . . . . . Highest Temperature 403 | . 192 222 43 16 16 . 61 169 336 259 189 6 403 180 Average Temperature 54 | . 56 91 11 7 7 . 20 58 122 96 88 4 123 55 Received Heat Transfer 2609 | . 123 . 171 . . . 108 930 171 252 339 . 99 416 Siege Activations . | . . . . . . . . . . . . . . . Robots Corrupted 2 | . . . . . . . . . . . . . . 2 Combat Hostiles 1 | . . . . . . . . . . . . . . 1 Parts Fried 6 | . . . . . . . . . . . . . . 6 Impact Corruptions . | . . . . . . . . . . . . . . . Robots Melted 3 | . . . . . . . . . . . 1 . . 2 Combat Hostiles 3 | . . . . . . . . . . . 1 . . 2 Parts Melted 21 | . 1 . . . . . . . 2 2 2 . . 14 Heat Transferred 7481 | . 550 25 75 . . . . . 955 1406 1014 . 450 3006 Parts Sabotaged 2 | . . . . . . . . . . . . . . 2 Parts Stolen . | . . . . . . . . . . . . . . . Parts Stripped . | . . . . . . . . . . . . . . . Power Chain Reactions 6 | . . . . . . . . . 2 . . . . 4 Alert | -11 -10 -10 -9 -9 -9 -8 -8 -8 -7 -7 -7 -7 -6 -6 ------- Run | Yrd Mat Min Mat Min Exi Min Mat Gar Fac Low Low Zio Pro Fac Peak Influence 720 | . 153 32 191 75 . . 318 720 564 . . . . 393 Initial 378 | . . . 12 15 . . . 2 378 . . . . . Average 174 | . 31 16 81 31 . . 145 369 351 . . . . 168 Maximum Alert Level 3 | . . . . . . . 1 3 2 . . . . 1 Low Security (%) 67 | . 100 100 100 100 . 100 72 37 5 . . . . 59 Level 1 20 | . . . . . . . 27 23 64 . . . . 40 Level 2 7 | . . . . . . . . 20 30 . . . . . Level 3 4 | . . . . . . . . 18 . . . . . . Level 4 . | . . . . . . . . . . . . . . . Level 5 . | . . . . . . . . . . . . . . . High Security . | . . . . . . . . . . . . . . . Max Security . | . . . . . . . . . . . . . . . Squads Dispatched 17 | . . . 1 1 . . 2 . 2 . . . . 11 Investigation 2 | . . . . . . . . . . . . . . 2 Extermination 1 | . . . . . . . . . . . . . . 1 Reinforcement 12 | . . . 1 . . . 2 . 2 . . . . 7 Assault 1 | . . . . 1 . . . . . . . . . . Garrison 1 | . . . . . . . . . . . . . . 1 Intercept . | . . . . . . . . . . . . . . . Searches Triggered . | . . . . . . . . . . . . . . . Construction Impeded 2 | . . . . . . . . . 1 . . . . 1 Haulers Reinforced 1 | . . . . . . . . . . . . . . 1 Active Scanning Responses . | . . . . . . . . . . . . . . . Cargo Convoy Interrupts 1 | . . . . . . . . . . . . . . 1 Stealth | -11 -10 -10 -9 -9 -9 -8 -8 -8 -7 -7 -7 -7 -6 -6 --------- Run | Yrd Mat Min Mat Min Exi Min Mat Gar Fac Low Low Zio Pro Fac Distress Signals 10 | . 1 . 2 . . . 4 . 2 . . . . 1 Communications Jammed . | . . . . . . . . . . . . . . . Distress Signals . | . . . . . . . . . . . . . . . Times Spotted 208 | . 12 1 14 5 50 . 15 21 17 18 7 . 5 43 Peak Tracking Total 11 | . 4 1 4 4 9 . 6 3 4 7 3 . 4 11 Tactical Retreats 22 | . 1 . . . 17 . 1 . . . 1 . . 2 Traps | -11 -10 -10 -9 -9 -9 -8 -8 -8 -7 -7 -7 -7 -6 -6 ------- Run | Yrd Mat Min Mat Min Exi Min Mat Gar Fac Low Low Zio Pro Fac Traps Triggered 17 | . 2 . . . . . . 15 . . . . . . Indirectly . | . . . . . . . . . . . . . . . Trap Hack Attempts . | . . . . . . . . . . . . . . . Triggered . | . . . . . . . . . . . . . . . Disarmed . | . . . . . . . . . . . . . . . Reprogrammed . | . . . . . . . . . . . . . . . Reused 1 | . . . . . . . . 1 . . . . . . Traps Extracted . | . . . . . . . . . . . . . . . Installed 1 | . . . . . . . . 1 . . . . . . Triggered 4 | . . . . . . . . 1 . . . . . 3 Most Traps Carried 4 | . . . . . . . . 4 3 3 3 3 3 . Machines | -11 -10 -10 -9 -9 -9 -8 -8 -8 -7 -7 -7 -7 -6 -6 ---------- Run | Yrd Mat Min Mat Min Exi Min Mat Gar Fac Low Low Zio Pro Fac Machines Disabled 26 | . . . . . 8 . . 4 8 . . . . 6 Max in Single Turn 4 | . . . . . 1 . . 1 4 . . . . 2 Garrison Relay 3 | . . . . . . . . 3 . . . . . . Machines Repaired . | . . . . . . . . . . . . . . . Machines Dismantled . | . . . . . . . . . . . . . . . Machines Sabotaged . | . . . . . . . . . . . . . . . Overloaded Fab Kills 4 | . . . . . . . . . . . . . . 4 Hacking | -11 -10 -10 -9 -9 -9 -8 -8 -8 -7 -7 -7 -7 -6 -6 --------- Run | Yrd Mat Min Mat Min Exi Min Mat Gar Fac Low Low Zio Pro Fac Machines Accessed 23 | . 4 . 2 . 2 . 3 2 6 . 1 1 . 2 Terminals 14 | . 4 . 1 . . . 2 2 5 . . . . . Fabricators 2 | . . . . . . . . . . . . . . 2 Repair Stations 2 | . . . 1 . . . . . 1 . . . . . Recycling Units . | . . . . . . . . . . . . . . . Scanalyzers . | . . . . . . . . . . . . . . . Garrison Access 1 | . . . . . . . 1 . . . . . . . Total Hacks 57 | . 10 . 7 . 2 . 10 3 15 . 1 4 . 5 Successful 36 | . 6 . 4 . 2 . 8 1 7 . 1 4 . 3 Failed 21 | . 4 . 3 . . . 2 2 8 . . . . 2 Catastrophic 2 | . . . . . . . . 2 . . . . . . Database Lockouts . | . . . . . . . . . . . . . . . Manual 37 | . 8 . 3 . 1 . 6 1 6 . . . . 12 Terminals 36 | . 10 . 3 . . . 9 3 11 . . . . . Fabricators 5 | . . . . . . . . . . . . . . 5 Repair Stations 8 | . . . 4 . . . . . 4 . . . . . Recycling Units . | . . . . . . . . . . . . . . . Scanalyzers . | . . . . . . . . . . . . . . . Garrison Access 1 | . . . . . . . 1 . . . . . . . Terminal Hacks 22 | . 5 . . . 2 . 4 1 5 . 1 4 . . Record 1 | . . . . . 1 . . . . . . . . . Part Schematic 4 | . . . . . . . . . . . . 4 . . Robot Analysis 1 | . 1 . . . . . . . . . . . . . Open Door 1 | . . . . . . . . . . . 1 . . . Open DSF 1 | . . . . . . . . . 1 . . . . . Branch Access Points 3 | . 1 . . . . . 1 . 1 . . . . . Emergency Access Points 1 | . . . . . . . . 1 . . . . . . Alert Level 2 | . . . . . . . 1 . 1 . . . . . Unreport Threat 1 | . . . . . . . . . 1 . . . . . Locate Traps 1 | . 1 . . . . . . . . . . . . . Zone Layout 5 | . 2 . . . . . 2 . 1 . . . . . Derelict Proto ID Bank 1 | . . . . . 1 . . . . . . . . . Fabricator Hacks 1 | . . . . . . . . . . . . . . 1 Load Schematic 1 | . . . . . . . . . . . . . . 1 Repair Station Hacks 6 | . . . 4 . . . . . 2 . . . . . Scan Component 3 | . . . 2 . . . . . 1 . . . . . Repair 3 | . . . 2 . . . . . 1 . . . . . Recycling Unit Hacks . | . . . . . . . . . . . . . . . Scanalyzer . | . . . . . . . . . . . . . . . Garrison Access Hacks 1 | . . . . . . . 1 . . . . . . . Unlock Access 1 | . . . . . . . 1 . . . . . . . Unauthorized Hacks 6 | . 1 . . . . . 3 . . . . . . 2 Terminals 4 | . 1 . . . . . 3 . . . . . . . Track 1 | . . . . . . . 1 . . . . . . . Assimilate 1 | . . . . . . . 1 . . . . . . . Botnet 2 | . 1 . . . . . 1 . . . . . . . Fabricators 2 | . . . . . . . . . . . . . . 2 Haulers 1 | . . . . . . . . . . . . . . 1 Overload 1 | . . . . . . . . . . . . . . 1 Repair Stations . | . . . . . . . . . . . . . . . Recycling Units . | . . . . . . . . . . . . . . . Scanalyzers . | . . . . . . . . . . . . . . . Garrison Access . | . . . . . . . . . . . . . . . Data Cores Recovered 1 | . . . . . . . . . 1 . . . . . Used . | . . . . . . . . . . . . . . . Hacking Detections 14 | . 4 . 1 . . . 1 2 5 . . . . 1 Full Trace Events 1 | . . . . . . . . . . . . . . 1 Feedback Events . | . . . . . . . . . . . . . . . Feedback Blocked . | . . . . . . . . . . . . . . . Robot Schematics Acquired 4 | . . . . . . . . . . . . 4 . . Robots Built . | . . . . . . . . . . . . . . . Authchips . | . . . . . . . . . . . . . . . Time . | . . . . . . . . . . . . . . . Total Robot Build Rating . | . . . . . . . . . . . . . . . Part Schematics Acquired 18 | . . . . . . . . . . . . 18 . . Parts Built . | . . . . . . . . . . . . . . . Authchips . | . . . . . . . . . . . . . . . Time . | . . . . . . . . . . . . . . . Total Part Build Rating . | . . . . . . . . . . . . . . . Parts Repaired 3 | . . . 2 . . . . . 1 . . . . . Time 78 | . . . 52 . . . . . 26 . . . . . Parts Recycled . | . . . . . . . . . . . . . . . Recycled Matter . | . . . . . . . . . . . . . . . Retrieved Matter . | . . . . . . . . . . . . . . . Retrieved Components . | . . . . . . . . . . . . . . . Parts Scanalyzed . | . . . . . . . . . . . . . . . Part Schematics Acquired . | . . . . . . . . . . . . . . . Parts Damaged . | . . . . . . . . . . . . . . . Bothacking | -11 -10 -10 -9 -9 -9 -8 -8 -8 -7 -7 -7 -7 -6 -6 ------------ Run | Yrd Mat Min Mat Min Exi Min Mat Gar Fac Low Low Zio Pro Fac Used RIF Installer . | . . . . . . . . . . . . . . . Robots Hacked . | . . . . . . . . . . . . . . . Non-combat . | . . . . . . . . . . . . . . . Combat . | . . . . . . . . . . . . . . . Robot Hacks Applied . | . . . . . . . . . . . . . . . Relay Couplers Released 13 | . . . . . . . . 13 . . . . . . Machine Destruction 13 | . . . . . . . . 13 . . . . . . Fabnet Peak Effective % . | . . . . . . . . . . . . . . . Robots Rewired 3 | . . . . . . . . . 1 2 . . . . Allies Hacked . | . . . . . . . . . . . . . . . Hacks Repelled . | . . . . . . . . . . . . . . . Allies | -11 -10 -10 -9 -9 -9 -8 -8 -8 -7 -7 -7 -7 -6 -6 -------- Run | Yrd Mat Min Mat Min Exi Min Mat Gar Fac Low Low Zio Pro Fac Total Allies 16 | . . 1 . 4 . . . . 1 2 . 4 . 4 Largest Group 4 | . . 1 1 4 4 . . . 1 2 1 4 4 4 Highest-Rated Group 157 | . . 31 31 71 71 . . . 21 62 23 157 157 112 Highest-Rated Ally 41 | . . 31 31 31 31 . . . 21 32 23 41 41 38 Zionite Dispatches 2 | . . . . . . . . . . . . . . 2 Recon 1 | . . . . . . . . . . . . . . 1 Fire 1 | . . . . . . . . . . . . . . 1 Total Orders 4 | . . . . . 3 . . . . . . . . 1 STAY 3 | . . . . . 3 . . . . . . . . . EXPLORE 1 | . . . . . . . . . . . . . . 1 Ally Attacks 125 | . . 6 . . 12 . . . 25 16 3 . 32 31 Total Damage 2958 | . . 107 . . 58 . . . 938 497 38 . 798 522 Kills 35 | . . 1 . . 4 . . . 10 5 1 . 5 9 Allies Corrupted . | . . . . . . . . . . . . . . . Allies Melted . | . . . . . . . . . . . . . . . Intel | -11 -10 -10 -9 -9 -9 -8 -8 -8 -7 -7 -7 -7 -6 -6 ------- Run | Yrd Mat Min Mat Min Exi Min Mat Gar Fac Low Low Zio Pro Fac Robot Analysis Total 1 | . 1 . . . . . . . . . . . . . Derelict Logs Recovered 4 | . . . . . . . . . . 2 1 . 1 . Drone Launches 2 | . . . . . . . . . . . . . . 2 Drone Recoveries 2 | . . . . . . . . . . . . . . 2 Exploration | -11 -10 -10 -9 -9 -9 -8 -8 -8 -7 -7 -7 -7 -6 -6 ------------- Run | Yrd Mat Min Mat Min Exi Min Mat Gar Fac Low Low Zio Pro Fac Turns Passed 17735 | . 1218 229 871 930 3099 149 899 1746 799 1398 728 3559 736 1374 Spaces Moved 6767 | 1 515 69 275 369 1158 63 338 627 292 530 270 1468 281 511 Core . | . . . . . . . . . . . . . . . Treads 6209 | . 230 69 275 369 1158 63 338 627 292 530 270 1468 281 239 Legs 416 | 1 285 . . . . . . . . . . . . 130 Wheels 142 | . . . . . . . . . . . . . . 142 Hover . | . . . . . . . . . . . . . . . Flight . | . . . . . . . . . . . . . . . Fastest Speed 120 | 120 120 320 240 240 240 240 240 240 240 240 240 240 242 120 Average Speed 232 | 120 208 320 240 240 240 240 240 240 240 240 240 241 242 159 Slowest Speed 320 | 120 320 320 240 240 240 240 240 240 240 240 240 243 243 260 Overloaded Moves . | . . . . . . . . . . . . . . . Propulsion Burnouts . | . . . . . . . . . . . . . . . Robots Hopped . | . . . . . . . . . . . . . . . Cave-ins Triggered 1 | . . . . . . . . . . . . . . 1 Exploration Rate (%) 47 | 2 67 16 25 65 90 27 44 74 9 73 56 90 40 35 Regions Visited 14 Branch Regions 8 Pre-discovered Areas 6 | . . . . . 1 . . . . 2 . 2 1 . Known Exits Taken 7 | . 1 . . . . . 1 . 1 1 1 1 1 . Unknown Exits Taken 6 | 1 . 1 1 1 1 1 . . . . . . . . Scrap Searched 10 | . . . . 2 . . . . . 3 2 3 . . Spaces Dug 14 | . . . . . . . . . . 9 . . . 5 Terrain Destroyed 136 | . . . . . 8 . 8 34 26 24 . . . 36 Melee 5 | . . . . . . . . . . . . . . 5 Projectile . | . . . . . . . . . . . . . . . AOE 131 | . . . . . 8 . 8 34 26 24 . . . 31 Terrain Rammed . | . . . . . . . . . . . . . . . Walls Destroyed . | . . . . . . . . . . . . . . . Machines Disabled . | . . . . . . . . . . . . . . . Actions | -11 -10 -10 -9 -9 -9 -8 -8 -8 -7 -7 -7 -7 -6 -6 --------- Run | Yrd Mat Min Mat Min Exi Min Mat Gar Fac Low Low Zio Pro Fac Total 8125 | . 597 75 435 398 1348 62 402 783 369 604 308 1485 328 931 Wait 478 | . 10 3 75 13 34 . 3 10 28 4 4 . 20 274 Move 6752 | . 514 68 274 368 1157 62 337 625 291 529 269 1467 280 511 Hop . | . . . . . . . . . . . . . . . Pick Up 119 | . 19 1 21 2 20 . 11 4 6 10 5 5 3 12 Fast Attach 50 | . 1 . 7 1 2 . . 2 7 3 1 3 4 19 Attach 54 | . 2 . 2 . 9 . 3 8 5 6 4 2 1 12 Detach 6 | . . . 1 . . . . 2 2 . . . . 1 Swap 49 | . 4 . . . 9 . 7 9 4 5 . . 4 7 Drop 109 | . 9 . 18 3 16 . 12 2 5 6 3 7 8 20 Fire 455 | . 33 3 37 11 101 . 29 96 20 28 22 1 8 66 Melee 5 | . . . . . . . . . . . . . . 5 Ram . | . . . . . . . . . . . . . . . Kick . | . . . . . . . . . . . . . . . Crush 5 | . 5 . . . . . . . . . . . . . Escape Stasis 24 | . . . . . . . . 24 . . . . . . Rewire 18 | . . . . . . . . . 1 13 . . . 4 Trap 1 | . . . . . . . . 1 . . . . . . Miscellaneous . | . . . . . . . . . . . . . . . Route ------- -11/Scrapyard -10/Materials (discovered 4 exits: *Mat x2 / *Min x2) -10/Mines -9/Materials -9/Mines (discovered 2 exits: *Mat / *Exi) -9/Exiles -8/Mines -8/Materials (discovered 2 exits: *Fac / Gar) -8/Garrison (discovered 2 exits: *Fac x2) -7/Factory (discovered 2 exits: *Low x2) -7/Lower Caves -7/Lower Caves (discovered 2 exits: *Fac / *Zio) -7/Zion -6/Proximity Caves -6/Factory (discovered 3 exits: *Fac x3) History --------- Turn | Location | Event 1 | -11/Scrapyard | Discovered new exit (range 0) 1 | -11/Scrapyard | Entered Materials 13 | -10/Materials | Identified exit to Mines 169 | -10/Materials | Discovered new exit (range 16) 209 | -10/Materials | Discovered new exit (range 15) 305 | -10/Materials | Build established: Mutant 1219 | -10/Materials | Entered Mines 1222 | -10/Mines | Received a Mining Laser from a helpful Derelict 1245 | -10/Mines | Met a Derelict bent on vengeance 1381 | -10/Mines | Discovered new exit (range 8) 1424 | -10/Mines | Assembled infested the area 1429 | -10/Mines | Assisted by a Guerilla fighting off Assembled 1448 | -10/Mines | Entered Materials 1448 | -9/Materials | Accompanied by 1 ally 1448 | -9/Materials | Evolved 2 slots: Propulsion x1, Utility x1 1797 | -9/Materials | Repaired Lgt. Treads 1824 | -9/Materials | Repaired Lgt. Treads 1891 | -9/Materials | Discovered new exit (range 13) 2153 | -9/Materials | Build established: Scavenger-Mutant 2319 | -9/Materials | Entered Mines 2591 | -9/Mines | Joined a pair of Derelicts in attacking an 0b10 outpost 2748 | -9/Mines | Discovered new exit (range 9) 2749 | -9/Mines | Met a Derelict testing a Signal Generator 2900 | -9/Mines | Found a damaged Exp. Sensor Array with a note attached 2905 | -9/Mines | Found Prototype Device 2925 | -9/Mines | Build established: Mutant 3172 | -9/Mines | Assisted by bots powering up and referring to "LRC-V3" 3232 | -9/Mines | Deemed a non-threat by the Exiles lab entrance 3235 | -9/Mines | Discovered new exit (range 5) 3249 | -9/Mines | Entered Exiles 3249 | -9/Exiles | Accompanied by 4 allies 3311 | -9/Exiles | Met 8R-AWN 3349 | -9/Exiles | Met EX-HEX 3445 | -9/Exiles | Met EX-DEC 3457 | -9/Exiles | Learned location of Zion (-7) 3752 | -9/Exiles | Visited The Gauntlet 3953 | -9/Exiles | Met EX-BIN 3987 | -9/Exiles | Aligned with FarCom system 3989 | -9/Exiles | Given EX-Vault access code 4047 | -9/Exiles | Opened EX-Vault 4063 | -9/Exiles | Found Latent Energy Streamer 4110 | -9/Exiles | Warned to stay clear of 0b10 Research branches 4609 | -9/Exiles | Attacked by the Exiles 4676 | -9/Exiles | Lost 4 allies 4826 | -9/Exiles | Core integrity fell below 50% 4837 | -9/Exiles | Destroyed 8R-AWN 4868 | -9/Exiles | Lost 10 parts (1p5n2u2w) 5258 | -9/Exiles | Destroyed EX-HEX 5290 | -9/Exiles | Destroyed EX-DEC 5334 | -9/Exiles | Destroyed EX-BIN 5354 | -9/Exiles | Found Prototype Energy Gun 6328 | -9/Exiles | Discovered new exit (range 10) 6348 | -9/Exiles | Entered Mines 6476 | -8/Mines | Discovered new exit (range 6) 6497 | -8/Mines | Entered Materials 6497 | -8/Materials | Evolved 2 slots: Propulsion x1, Utility x1 6808 | -8/Materials | Build established: Scavenger-Mutant 6997 | -8/Materials | Discovered new exit (range 16) 7076 | -8/Materials | Met 7R-MNS 7394 | -8/Materials | Identified exit to Garrison 7396 | -8/Materials | Entered Garrison 7628 | -8/Garrison | Triggered checkpoint 7728 | -8/Garrison | Triggered checkpoint 8052 | -8/Garrison | Triggered checkpoint 8190 | -8/Garrison | Triggered checkpoint 8416 | -8/Garrison | Discovered new exit (range 12) 8442 | -8/Garrison | Triggered checkpoint 8492 | -8/Garrison | Lost 3 parts (2n1u) 8536 | -8/Garrison | Garrison Relay disabled 8599 | -8/Garrison | Garrison Relay disabled 8698 | -8/Garrison | Triggered checkpoint 8751 | -8/Garrison | Lost 3 parts (2n1w) 8809 | -8/Garrison | Core integrity fell below 50% 8897 | -8/Garrison | Discovered new exit (range 9) 8926 | -8/Garrison | Attempted to access garrison exit controls, blocked by remote lockdown 9142 | -8/Garrison | Entered Factory 9142 | -7/Factory | Evolved 2 slots: Power x1, Utility x1 9348 | -7/Factory | Identified exit to Lower Caves 9509 | -7/Factory | Repaired Lgt. Treads 9941 | -7/Factory | Entered Lower Caves 9946 | -7/Lower Caves | Learned location of Extension (-5) 9992 | -7/Lower Caves | Identified Exp. Sensor Array 10235 | -7/Lower Caves | Attracted the attention of an 0b10 outpost 10290 | -7/Lower Caves | Met a Warlord Commander 10291 | -7/Lower Caves | Learned location of Warlord (-5) 10292 | -7/Lower Caves | Warlord Commander delivered Encrypted Comm Array 10299 | -7/Lower Caves | Found Encrypted Comm Array 10304 | -7/Lower Caves | Destroyed 7 combat bots 10313 | -7/Lower Caves | Lost 5 parts (2p2n1u) 10518 | -7/Lower Caves | Learned location of 1 exit from Factory 10945 | -7/Lower Caves | Found Imp. Powered Armor 10956 | -7/Lower Caves | Lost 3 parts (1p1n1u) 11247 | -7/Lower Caves | Discovered new exit (range 11) 11280 | -7/Lower Caves | Attacked by a delusional Derelict stockpiling parts 11337 | -7/Lower Caves | Identified exit to Lower Caves 11339 | -7/Lower Caves | Entered another Lower Caves area 11339 | -7/Lower Caves | Accompanied by 1 ally 11373 | -7/Lower Caves | Discovered new exit (range 3) 11376 | -7/Lower Caves | Identified exit to Factory 11575 | -7/Lower Caves | Spotted B-75 Beast 11656 | -7/Lower Caves | Lost 3 parts (1p1n1w) 11695 | -7/Lower Caves | Attracted the attention of an 0b10 checkpoint 11966 | -7/Lower Caves | Discovered new exit (range 7) 11992 | -7/Lower Caves | Learned location of 1 exit from Proximity Caves 12062 | -7/Lower Caves | Identified exit to Zion 12067 | -7/Lower Caves | Entered Zion 12103 | -7/Zion | Given the Hacking Drone Bay 12108 | -7/Zion | Found Prototype Device 12367 | -7/Zion | Discovered new exit (range 12) 13492 | -7/Zion | Learned location of Data Miner (-6) 13662 | -7/Zion | Found CR-A16's Pointy Stick 13845 | -7/Zion | Learned location of Armory (-3) 15088 | -7/Zion | Imprinted 15090 | -7/Zion | Declared Zion's savior 15623 | -7/Zion | Identified exit to Proximity Caves 15626 | -7/Zion | Entered Proximity Caves 15626 | -6/Proximity Caves | Accompanied by 4 allies 15685 | -6/Proximity Caves | Lost 3 allies 15709 | -6/Proximity Caves | Identified Hacking Drone Bay 16362 | -6/Proximity Caves | Entered Factory 16362 | -6/Factory | Accompanied by 1 ally 16362 | -6/Factory | Evolved 2 slots: Propulsion x1, Utility x1 16363 | -6/Factory | Identified exit to Factory 16576 | -6/Factory | Zion Fire squad teleported in 16597 | -6/Factory | Zion Recon squad teleported in 16679 | -6/Factory | Garrison activated, responded to threat 16726 | -6/Factory | Found Prototype Processor 16726 | -6/Factory | Identified Exp. Targeting Computer 16730 | -6/Factory | Lost 5 parts (1p3n1u) 17181 | -6/Factory | Discovered exit to Factory (range 9) 17208 | -6/Factory | Discovered exit to Factory (range 23) 17602 | -6/Factory | Cargo convoy interrupted 17656 | -6/Factory | Destroyed 8 combat bots 17658 | -6/Factory | Lost 5 parts (1p1n1u2w) 17685 | -6/Factory | Found Corrupted Prototype Device 17717 | -6/Factory | Lost 5 parts (1n1u3w) 17723 | -6/Factory | Crushed by falling debris 17723 | -6/Factory | System corruption reached 10% 17736 | -6/Factory | Self-destructed Last Messages --------------- 17723_ Crushed by falling debris. 17723_ Myomer Leg destroyed. 17723_ System corrupted by crushing effect (+1). 17723_ Phasing Sabre destroyed. 17723_ System corrupted by crushing effect (+5). 17726_ System corrupted: Matter fused (-6). 17728_ K-01 Serf collects debris. 17731_ Lgt. Ion Engine destroyed. 17731_ K-01 Serf collects debris. 17733_ Acquired Corrupted Flexi-carbon Leg. 17733_ Integrated Corrupted Flexi-carbon Leg (+7). 17733_ K-01 Serf collects debris. 17734_ Fabricator zaps Cogmind with an electromagnetic arc. 17735_ Fabricator zaps K-01 Serf with an electromagnetic arc. 17735_ K-01 Serf collects debris. 17736_ Fabricator zaps K-01 Serf with an electromagnetic arc. 17736_ Chain reaction triggered in Lgt. Ion Engine. 17736_ K-01 Serf system terminally corrupted. 17736_ Fabricator disabled. 17736_ Assembly Bed disabled. Map ----- +----------------------------------------------------+ | ??????# #?????????????????# #????????? | | ??????# #?????????????????# #????????? | | ??????# #?????????????????# #????????? | | ??????# #?????????????????# #????????? | | ??????# ##############????# #????????? | | ??????# # #????# #????????? | | ####### # #????# #????????? | | # # ###### #????????? | | # # + ########?? | | """" # # ###### | | """" # # #????# | | """" # H# #????# """ ![ """ ""?? | | """" + # #????# """ ![ """ """? | | """" # + #????## """ """ """ | | """" # # #?????# """ """ """ | | # # #?????# | | # # #?????# """ """ | | # ###+########"#?????# """ """ | | # ############# """ """ | | ####### #! """""" # """ """ | | # ! """""" # [[ | | ####### #! "" "" # [] | | ??????# # """ #% [] | | ??????######## # %%[% %g= x | | ?????????????# # * # ] | | ?????????????# # @" # ###### | | ????????###### # = """"k# ]! #????# ### | | ????????# # # # % !########/### | | ########## #A ############# = # * / | | # ! = " ! # | | # !%[= ! % A + """ # | | # *!|!! [ # """"" # | | # !%[ = !! %####"#"###### """"" # | | # ! % % = #?#####????########### | | # * ####################### | | # # % | | # # | | # | | # # | | # # """ """" """ """" """" """" """ | | # # """" """" """ """" """" """" """ | | ##### # # """" """" """ """" """" """" """ | | ############## % | | # #???# | | + #####+#+####### ########+########+####### | | # = ## # #???# #??# #??? | | # ## # ????# #??# #??? | | # !/! ## # ????# ! #??# #??? | | # !/! ## # ????# #??#! #??? | | # !!! ## """" # ????# #??# #??? | +----------------------------------------------------+ Best States ------------- Heat Dissipation 78 Energy Generation 31 Energy Capacity 500 Matter Stores 300 Matter Capacity 300 Sight Range 18 Robot Scan Range 20 Terrain Scan Density 10 Cloak Strength 2 Armor Coverage 600 Propulsion Shielding 66 Weapon Cycling 25 Evasion (%) 55 Targeting Accuracy 8 Core Analysis 6 Recoil Reduction 5 Trap Extractor Capacity 4 Item Schematics ----------------- Riot Gun | -7/Zion | Free Battle Cannon | -7/Zion | Free Slug Cannon | -7/Zion | Free Flamer | -7/Zion | Free Shock Absorption System | -7/Zion | Archive Remote Shield | -7/Zion | Archive Mak. Axe | -7/Zion | Archive Proton Cannon | -7/Zion | Archive Dynamic Insulation System | -7/Zion | Archive Adv. Terrain Scanner | -7/Zion | Archive Coolant Injector | -7/Zion | Archive Coil Gun | -7/Zion | Archive Drone Bay | -7/Zion | Archive Mak. Hacking Suite | -7/Zion | Archive Matter Filter | -7/Zion | Archive Imp. Arc Projector | -7/Zion | Archive Imp. Corruption Screen | -7/Zion | Archive Mak. Light Armor Plating | -7/Zion | Archive Robot Schematics ------------------ Y-54 Guardian | -7/Zion | Archive B-36 Bruiser | -7/Zion | Archive W-25 Informer | -7/Zion | Archive X-82 Rainmaker | -7/Zion | Archive Fabricated ------------ Nothing Alien Tech Used ----------------- None Achievements -------------- None Challenges ------------ None Game ------ Seed PhaseArmageddonCanceller Manual? 0 Play Time 01:18:01 Cumulative 395.5 hours Start 2024.05.23 @ 12:46:57 End 2024.05.23 @ 21:59:07 Sessions 7 Manual Loads 0 Difficulty Rogue Special Mode None Game No. 403 Rogue 403 Adventurer 0 Explorer 0 Win Type - Total 30 Types 16/3/5/1/2/0/3/0/0 Lore% 89 Gallery% 89 Achievement% 82 Wizard Run 0 Options --------- Layout 0 ASCII 0 Keyboard 0 Movement Arrows Keybinds 0 Fullscreen 2 Font 24/Smallcaps Map View 76x50 Zoom Use 0% Tactical HUD 1 Map Filters NONE Filters NONE Steam 1 RUN: 5742ee1a-59b0-42f8-a95a-8a3047146b74